fUST/lending_fUST_20250901
["ID","MTS","AMOUNT","RATE_DAILY","PERIOD"]
[382547359,1756663861876,-1000.0,0.00018021,2]
[382547360,1756663861887,-1000.0,0.00018021,2]
[382547361,1756663861898,-1000.0,0.00018021,2]
[382547362,1756663861907,-1000.0,0.00018021,2]
[382547363,1756663861920,-1000.0,0.00018021,2]
[382547364,1756663861929,-1000.0,0.00018021,2]
[382547365,1756663861939,-1000.0,0.00018021,2]
[382547366,1756663861948,-1000.0,0.00018021,2]
[382547367,1756663861958,-1000.0,0.00018021,2]
[382547368,1756663861967,-513.50546333,0.00018021,2]
[382547369,1756663861976,-1000.0,0.00018021,2]
[382547370,1756663861986,-1000.0,0.00018021,2]
[382547371,1756663861995,-1000.0,0.00018021,2]
[382547372,1756663862004,-1000.0,0.00018021,2]
[382547373,1756663862014,-1000.0,0.00018021,2]
[382547374,1756663862023,-184.13795126,0.00018021,2]
[382547375,1756663862033,-856.53122652,0.00018021,2]
[382547376,1756663862043,-713.79428328,0.00018021,2]
[382547377,1756663862052,-1000.0,0.00018021,2]
[382547378,1756663862062,-1000.0,0.00018021,2]
[382547379,1756663862072,-1000.0,0.00018021,2]
[382547380,1756663862083,-1000.0,0.00018021,2]
[382547381,1756663862093,-1000.0,0.00018021,2]
[382547382,1756663862103,-1024.36340573,0.00018021,2]
[382547383,1756663862112,-1047.17708117,0.00018021,2]
[382547384,1756663862123,-1000.0,0.00018021,2]
[382547385,1756663862133,-1000.0,0.00018021,2]
[382547386,1756663862150,-1000.0,0.00018021,2]
[382547387,1756663862160,-1000.0,0.00018021,2]
[382547388,1756663862171,-272.71618602,0.00018061,2]
[382547389,1756663862182,-1443.0,0.00018069,2]
[382547390,1756663862193,-500.0,0.00018069,2]
[382547391,1756663862204,-480.0,0.00018069,2]
[382547392,1756663862217,-852.81,0.00018069,2]
[382547393,1756663862227,-763.5,0.00018069,2]
[382547394,1756663862241,-500.0,0.00018069,2]
[382547395,1756663862251,-480.0,0.00018069,2]
[382547396,1756663862261,-480.0,0.00018069,2]
[382547397,1756663862271,-480.0,0.00018069,2]
[382547398,1756663862281,-480.0,0.00018069,2]
[382547399,1756663862291,-547.95,0.00018069,2]
[382547400,1756663862300,-480.0,0.00018069,2]
[382547401,1756663862313,-710.85,0.00018069,2]
[382547402,1756663862323,-480.0,0.00018069,2]
[382547403,1756663862334,-977.51,0.00018069,2]
[382547404,1756663862346,-480.0,0.00018069,2]
[382547405,1756663862357,-480.0,0.00018069,2]
[382547406,1756663862368,-480.0,0.00018069,2]
[382547407,1756663862378,-512.4,0.00018069,2]
[382547408,1756663862389,-480.0,0.00018069,2]
[382547409,1756663862399,-480.0,0.00018069,2]
[382547410,1756663862408,-604.86,0.00018069,2]
[382547411,1756663862418,-731.8,0.00018069,2]
[382547412,1756663862427,-848.67,0.00018069,2]
[382547413,1756663862435,-625.64,0.00018069,2]
[382547414,1756663862444,-1234.88,0.00018069,2]
[382547415,1756663862454,-480.0,0.00018069,2]
[382547416,1756663862463,-486.26,0.00018069,2]
[382547417,1756663862472,-950.35,0.00018069,2]
[382547418,1756663862482,-765.75,0.00018069,2]
[382547419,1756663862491,-480.0,0.00018069,2]
[382547420,1756663862501,-480.0,0.00018069,2]
[382547421,1756663862511,-480.0,0.00018069,2]
[382547422,1756663862521,-575.60032032,0.00018069,2]
[382547423,1756663862531,-480.0,0.00018069,2]
[382547424,1756663862542,-480.0,0.00018069,2]
[382547425,1756663862551,-583.46,0.00018069,2]
[382547426,1756663862561,-480.0,0.00018069,2]
[382547427,1756663862571,-480.0,0.00018069,2]
[382547428,1756663862581,-480.0,0.00018069,2]
[382547429,1756663862590,-652.28,0.00018069,2]
[382547430,1756663862599,-574.84,0.00018069,2]
[382547431,1756663862608,-480.0,0.00018069,2]
[382547432,1756663862618,-532.79,0.00018069,2]
[382547433,1756663862627,-153.449141,0.00018082,10]
[382547434,1756663862637,-1802.2519996,0.00018096,2]
[382547435,1756663862646,-1744.0,0.00018135,2]
[382547436,1756663862656,-187.2916484,0.00018141,2]
[382547437,1756663862665,-150.0,0.00018143,2]
[382547438,1756663862675,-207.93,0.00018143,2]
[382547439,1756663862684,-182.531,0.00018143,2]
[382547440,1756663862694,-150.134,0.00018143,2]
[382547441,1756663862704,-150.0,0.00018143,2]
[382547442,1756663862714,-255.159,0.00018143,2]
[382547443,1756663862723,-150.0,0.00018143,2]
[382547444,1756663862732,-975.0,0.00018143,2]
[382547445,1756663862742,-2152.0,0.00018143,2]
[382547446,1756663862751,-632.0,0.00018143,2]
[382547447,1756663862760,-697.0,0.00018146,2]
[382547448,1756663862770,-1114.55,0.00018166,2]
[382547449,1756663862780,-480.0,0.00018166,2]
[382547450,1756663862790,-480.0,0.00018166,2]
[382547451,1756663862801,-480.0,0.00018166,2]
[382547452,1756663862811,-484.58,0.00018166,2]
[382547453,1756663862820,-553.99,0.00018166,2]
[382547454,1756663862830,-584.35,0.00018166,2]
[382547455,1756663862840,-2129.52,0.00018166,2]
[382547456,1756663862850,-518.3,0.00018166,2]
[382547457,1756663862860,-1761.05,0.00018166,2]
[382547458,1756663862870,-1192.46,0.00018166,2]
[382547459,1756663862879,-1754.38,0.00018166,2]
[382547460,1756663862889,-480.0,0.00018166,2]
[382547461,1756663862899,-744.54,0.00018166,2]
[382547462,1756663862910,-480.0,0.00018166,2]
[382547463,1756663862919,-480.0,0.00018166,2]
[382547464,1756663862929,-625.83,0.00018166,2]
[382547465,1756663862939,-760.49,0.00018166,2]
[382547466,1756663862949,-480.0,0.00018166,2]
[382547467,1756663862960,-480.0,0.00018166,2]
[382547468,1756663862970,-592.49,0.00018166,2]
[382547469,1756663862980,-567.45,0.00018166,2]
[382547470,1756663862991,-480.0,0.00018167,2]
[382547471,1756663863001,-1065.21,0.00018167,2]
[382547472,1756663863011,-480.0,0.00018167,2]
[382547473,1756663863021,-609.2482364,0.00018167,2]
[382547474,1756663863031,-480.0,0.00018167,2]
[382547475,1756663863041,-480.0,0.00018167,2]
[382547476,1756663863051,-480.0,0.00018167,2]
[382547477,1756663863061,-565.44,0.00018167,2]
[382547478,1756663863070,-611.39036016,0.00018167,2]
[382547479,1756663863081,-619.74,0.00018167,2]
[382547480,1756663863091,-504.19,0.00018167,2]
[382547481,1756663863100,-514.21,0.00018167,2]
[382547482,1756663863110,-1545.76,0.00018167,2]
[382547483,1756663863119,-480.0,0.00018167,2]
[382547484,1756663863129,-190.61,0.00018167,2]
[382547485,1756663863139,-510.56,0.00018167,2]
[382547486,1756663863149,-480.0,0.00018167,2]
[382547487,1756663863159,-738.05,0.00018167,2]
[382547488,1756663863169,-837.22,0.00018167,2]
[382547489,1756663863179,-480.0,0.00018167,2]
[382547490,1756663863189,-480.0,0.00018167,2]
[382547491,1756663863198,-480.0,0.00018167,2]
[382547492,1756663863208,-1035.09,0.00018167,2]
[382547493,1756663863218,-668.82,0.00018167,2]
[382547494,1756663863228,-1122.9,0.00018167,2]
[382547495,1756663863242,-719.24,0.00018167,2]
[382547496,1756663863252,-853.26,0.00018167,2]
[382547497,1756663863263,-480.0,0.00018167,2]
[382547498,1756663863278,-480.0,0.00018167,2]
[382547499,1756663863287,-502.13,0.00018167,2]
[382547500,1756663863297,-480.0,0.00018167,2]
[382547501,1756663863307,-480.0,0.00018167,2]
[382547502,1756663863318,-480.0,0.00018167,2]
[382547503,1756663863328,-480.0,0.00018167,2]
[382547504,1756663863338,-586.78,0.00018167,2]
[382547505,1756663863347,-727.45,0.00018167,2]
[382547506,1756663863356,-480.0,0.00018167,2]
[382547507,1756663863366,-480.0,0.00018167,2]
[382547508,1756663863376,-506.27,0.00018167,2]
[382547509,1756663863386,-690.59,0.00018167,2]
[382547510,1756663863396,-1004.02,0.00018167,2]
[382547511,1756663863406,-480.0,0.00018167,2]
[382547512,1756663863415,-480.0,0.00018167,2]
[382547513,1756663863426,-1000.12,0.00018167,2]
[382547514,1756663863436,-960.92,0.00018167,2]
[382547515,1756663863446,-5709.13,0.00018167,2]
[382547516,1756663863456,-807.97,0.00018167,2]
[382547517,1756663863466,-1056.16,0.00018167,2]
[382547518,1756663863476,-873.14,0.00018167,2]
[382547519,1756663863487,-3641.22,0.00018167,2]
[382547520,1756663863496,-652.64,0.00018167,2]
[382547521,1756663863506,-1023.16,0.00018167,2]
[382547522,1756663863516,-480.0,0.00018167,2]
[382547523,1756663863526,-1318.64,0.00018167,2]
[382547524,1756663863536,-1747.03,0.00018167,2]
[382547525,1756663863546,-480.0,0.00018167,2]
[382547526,1756663863556,-480.0,0.00018167,2]
[382547527,1756663863566,-210.46874851,0.00018167,2]
[382547528,1756663863576,-480.0,0.00018167,2]
[382547529,1756663863586,-828.71,0.00018167,2]
[382547530,1756663863596,-480.0,0.00018167,2]
[382547531,1756663863606,-848.0,0.00018167,2]
[382547532,1756663863616,-494.09,0.00018167,2]
[382547533,1756663863627,-480.0,0.00018167,2]
[382547534,1756663863637,-480.0,0.00018167,2]
[382547535,1756663863647,-4134.51,0.00018167,2]
[382547536,1756663863656,-480.0,0.00018167,2]
[382547537,1756663863665,-480.0,0.00018167,2]
[382547538,1756663863675,-486.53,0.00018167,2]
[382547539,1756663863684,-480.0,0.00018167,2]
[382547540,1756663863694,-480.0,0.00018167,2]
[382547541,1756663863704,-4976.34,0.00018167,2]
[382547542,1756663863715,-899.11,0.00018167,2]
[382547543,1756663863724,-604.68,0.00018167,2]
[382547544,1756663863734,-480.0,0.00018167,2]
[382547545,1756663863744,-2257.96,0.00018167,2]
[382547546,1756663863753,-915.0,0.00018167,2]
[382547547,1756663863763,-866.44,0.00018167,2]
[382547548,1756663863773,-494.9,0.00018167,2]
[382547549,1756663863783,-1296.33,0.00018167,2]
[382547550,1756663863792,-480.0,0.00018167,2]
[382547551,1756663863802,-480.0,0.00018167,2]
[382547552,1756663863811,-1042.9,0.00018167,2]
[382547553,1756663863821,-480.0,0.00018167,2]
[382547554,1756663863831,-618.75,0.00018167,2]
[382547555,1756663863840,-997.0,0.00018167,2]
[382547556,1756663863850,-480.0,0.00018167,2]
[382547557,1756663863859,-480.0,0.00018167,2]
[382547558,1756663863868,-748.32,0.00018167,2]
[382547559,1756663863878,-1041.59,0.00018167,2]
[382547560,1756663863887,-989.12,0.00018167,2]
[382547561,1756663863897,-480.0,0.00018167,2]
[382547562,1756663863908,-523.97,0.00018167,2]
[382547563,1756663863917,-480.0,0.00018167,2]
[382547564,1756663863927,-706.73,0.00018167,2]
[382547565,1756663863936,-1104.14,0.00018167,2]
[382547566,1756663863946,-480.0,0.00018167,2]
[382547567,1756663863955,-480.0,0.00018167,2]
[382547568,1756663863965,-480.0,0.00018167,2]
[382547569,1756663863975,-942.43,0.00018167,2]
[382547570,1756663863984,-695.96,0.00018167,2]
[382547571,1756663863994,-153.449141,0.00018184,3]
[382547572,1756663864003,-349.0,0.00018217,2]
[382547573,1756663864013,-168.0,0.0001822,2]
[382547574,1756663864023,-476.96,0.00018232,3]
[382547575,1756663864033,-558.22,0.00018232,3]
[382547576,1756663864042,-697.0,0.00018234,2]
[382547577,1756663864052,-1887.87,0.00018241,2]
[382547578,1756663864061,-3163.64,0.00018241,2]
[382547579,1756663864070,-636.1,0.00018241,2]
[382547580,1756663864080,-480.0,0.00018241,2]
[382547581,1756663864089,-910.73,0.00018241,2]
[382547582,1756663864098,-1292.35,0.00018241,2]
[382547583,1756663864107,-600.18,0.00018241,2]
[382547584,1756663864117,-500.0,0.00018242,2]
[382547585,1756663864126,-480.0,0.00018242,2]
[382547586,1756663864135,-492.3,0.00018242,2]
[382547587,1756663864144,-498.98,0.00018242,2]
[382547588,1756663864153,-1166.01,0.00018242,2]
[382547589,1756663864162,-480.0,0.00018242,2]
[382547590,1756663864171,-480.0,0.00018242,2]
[382547591,1756663864180,-526.61,0.00018242,2]
[382547592,1756663864189,-1015.61,0.00018242,2]
[382547593,1756663864197,-480.0,0.00018242,2]
[382547594,1756663864206,-480.0,0.00018242,2]
[382547595,1756663864215,-290.01900254,0.00018242,2]
[382547596,1756663864224,-893.7,0.00018242,2]
[382547597,1756663864238,-613.83532325,0.00018242,2]
[382547598,1756663864247,-480.0,0.00018242,2]
[382547599,1756663864256,-480.0,0.00018242,2]
[382547600,1756663864265,-588.99,0.00018242,2]
[382547601,1756663864275,-480.0,0.00018242,2]
[382547602,1756663864284,-1280.26,0.00018242,2]
[382547603,1756663864293,-1074.17,0.00018242,2]
[382547604,1756663864303,-480.0,0.00018242,2]
[382547605,1756663864312,-480.0,0.00018242,2]
[382547606,1756663864321,-607.35,0.00018242,2]
[382547607,1756663864331,-499.64,0.00018242,2]
[382547608,1756663864340,-1214.75,0.00018242,2]
[382547609,1756663864349,-480.0,0.00018242,2]
[382547610,1756663864358,-600.48,0.00018242,2]
[382547611,1756663864367,-480.0,0.00018242,2]
[382547612,1756663864376,-588.33396438,0.00018242,2]
[382547613,1756663864386,-1129.46,0.00018242,2]
[382547614,1756663864396,-480.0,0.00018242,2]
[382547615,1756663864406,-480.0,0.00018242,2]
[382547616,1756663864416,-669.42,0.00018242,2]
[382547617,1756663864425,-480.0,0.00018242,2]
[382547618,1756663864435,-487.47,0.00018242,2]
[382547619,1756663864444,-480.0,0.00018242,2]
[382547620,1756663864454,-1371.46,0.00018242,2]
[382547621,1756663864464,-1039.62,0.00018242,2]
[382547622,1756663864473,-480.0,0.00018242,2]
[382547623,1756663864483,-874.47,0.00018242,2]
[382547624,1756663864492,-480.0,0.00018242,2]
[382547625,1756663864502,-480.0,0.00018242,2]
[382547626,1756663864511,-480.0,0.00018242,2]
[382547627,1756663864522,-986.16,0.00018242,2]
[382547628,1756663864531,-480.0,0.00018242,2]
[382547629,1756663864541,-480.0,0.00018242,2]
[382547630,1756663864550,-254.43567061,0.00018242,2]
[382547631,1756663864560,-480.0,0.00018242,2]
[382547632,1756663864570,-524.75,0.00018242,2]
[382547633,1756663864579,-480.0,0.00018242,2]
[382547634,1756663864588,-1277.35,0.00018242,2]
[382547635,1756663864598,-1064.59,0.00018242,2]
[382547636,1756663864609,-480.0,0.00018242,2]
[382547637,1756663864619,-480.0,0.00018242,2]
[382547638,1756663864628,-480.0,0.00018242,2]
[382547639,1756663864638,-717.99,0.00018242,2]
[382547640,1756663864648,-480.0,0.00018242,2]
[382547641,1756663864657,-480.0,0.00018242,2]
[382547642,1756663864666,-567.93,0.00018242,2]
[382547643,1756663864677,-1157.17,0.00018242,2]
[382547644,1756663864686,-480.0,0.00018242,2]
[382547645,1756663864695,-666.75,0.00018242,2]
[382547646,1756663864704,-596.14,0.00018242,2]
[382547647,1756663864714,-480.0,0.00018242,2]
[382547648,1756663864724,-480.0,0.00018242,2]
[382547649,1756663864734,-1198.43,0.00018242,2]
[382547650,1756663864744,-480.0,0.00018242,2]
[382547651,1756663864753,-595.33,0.00018242,2]
[382547652,1756663864762,-480.0,0.00018242,2]
[382547653,1756663864773,-480.0,0.00018242,2]
[382547654,1756663864782,-18.49494388,0.00018242,2]
[382547655,1756663865256,480.0,0.00016797,2]
[382547656,1756663865332,480.0,0.00016797,2]
[382547657,1756663865371,480.0,0.00016797,2]
[382547658,1756663865710,1885.66,0.00016797,2]
[382547659,1756663866012,480.0,0.00016797,2]
[382547660,1756663866211,480.0,0.00016797,2]
[382547661,1756663866279,-480.0,0.00016872,2]
[382547662,1756663866289,-480.0,0.00016872,2]
[382547663,1756663866299,-500.0,0.00016898,2]
[382547664,1756663866308,-500.0,0.00016899,2]
[382547665,1756663866319,-500.0,0.00016899,2]
[382547666,1756663866328,-500.0,0.00016899,2]
[382547667,1756663866339,-500.0,0.00016899,2]
[382547668,1756663866348,-500.0,0.00016899,2]
[382547669,1756663866357,-500.0,0.00016899,2]
[382547670,1756663866367,-500.0,0.00016899,2]
[382547671,1756663866376,-500.0,0.00016899,2]
[382547672,1756663866385,-500.0,0.00016899,2]
[382547673,1756663866396,-500.0,0.00016899,2]
[382547674,1756663866406,-192.48109214,0.00016899,2]
[382547675,1756663866416,-480.0,0.00016899,2]
[382547676,1756663866426,-1990.83836828,0.00016971,2]
[382547677,1756663866436,-480.0,0.00017071,2]
[382547678,1756663866446,-1885.66,0.00017071,2]
[382547679,1756663866456,-480.0,0.00017071,2]
[382547680,1756663866466,-483.93,0.00017071,2]
[382547681,1756663866476,-480.0,0.00017146,2]
[382547682,1756663866485,-480.0,0.00017146,2]
[382547683,1756663866495,-480.0,0.00017173,2]
[382547684,1756663866504,-151.000001,0.00017173,2]
[382547685,1756663866514,-151.0,0.00017247,2]
[382547686,1756663866523,-151.0,0.00017247,2]
[382547687,1756663866532,-151.0,0.00017247,2]
[382547688,1756663866543,-614.75817372,0.00017345,2]
[382547689,1756663866552,-1885.66,0.00017345,2]
[382547690,1756663866562,-480.0,0.00017345,2]
[382547691,1756663866571,-151.0,0.00017419,2]
[382547692,1756663866580,-151.0,0.00017419,2]
[382547693,1756663866590,-151.0,0.00017419,2]
[382547694,1756663866600,-480.0,0.0001742,2]
[382547695,1756663866610,-480.0,0.0001742,2]
[382547696,1756663866620,-278.83,0.00017447,2]
[382547697,1756663866630,-151.0,0.00017458,2]
[382547698,1756663866639,-151.0,0.00017458,2]
[382547699,1756663866649,-151.0,0.00017458,2]
[382547700,1756663866659,-9430.89049605,0.00017619,2]
[382547701,1756663866668,-151.0,0.00017619,2]
[382547702,1756663866679,-151.0,0.00017619,2]
[382547703,1756663866689,-1885.66,0.00017619,2]
[382547704,1756663866698,-375.85,0.00017619,2]
[382547705,1756663866709,-480.0,0.00017694,2]
[382547706,1756663866720,-151.0,0.00017721,2]
[382547707,1756663866729,-151.0,0.00017721,2]
[382547708,1756663866739,-1885.66,0.00017893,2]
[382547709,1756663866748,-480.0,0.00017968,2]
[382547710,1756663866758,-1885.66,0.00018167,2]
[382547711,1756663866767,-461.50505612,0.00018242,2]
[382547712,1756663866777,-480.0,0.00018242,2]
[382547713,1756663866787,-536.49,0.00018242,2]
[382547714,1756663866797,-480.0,0.00018242,2]
[382547715,1756663866806,-480.0,0.00018242,2]
[382547716,1756663866817,-549.55,0.00018242,2]
[382547717,1756663866826,-516.35,0.00018242,2]
[382547718,1756663866835,-480.0,0.00018242,2]
[382547719,1756663866844,-962.38,0.00018242,2]
[382547720,1756663866854,-552.36,0.00018242,2]
[382547721,1756663866863,-822.05,0.00018242,2]
[382547722,1756663866875,-480.0,0.00018242,2]
[382547723,1756663866884,-973.51,0.00018242,2]
[382547724,1756663866895,-480.0,0.00018242,2]
[382547725,1756663866904,-371.26886479,0.00018242,2]
[382547726,1756663866915,-554.79,0.00018242,2]
[382547727,1756663866925,-519.71,0.00018242,2]
[382547728,1756663866935,-1180.13,0.00018242,2]
[382547729,1756663866945,-1022.47,0.00018242,2]
[382547730,1756663866955,-1156.67,0.00018242,2]
[382547731,1756663866966,-480.0,0.00018242,2]
[382547732,1756663866976,-480.0,0.00018242,2]
[382547733,1756663866986,-1145.21,0.00018242,2]
[382547734,1756663866995,-995.96,0.00018242,2]
[382547735,1756663867005,-1177.74,0.00018242,2]
[382547736,1756663867014,-499.90855037,0.00018242,2]
[382547737,1756663867075,687.23032053,0.00016798,2]
[382547738,1756663867099,4312.76967947,0.00016798,2]
[382547739,1756663867442,480.0,0.00016797,2]
[382547740,1756663867533,207.23032053,0.00016797,2]
[382547741,1756663867555,272.76967947,0.00016797,2]
[382547742,1756663867735,480.0,0.00016797,2]
[382547743,1756663868031,480.0,0.00016797,2]
[382547744,1756663868186,3767.23032053,0.00016798,2]
[382547745,1756663868208,1232.76967947,0.00016798,2]
[382547746,1756663868421,480.0,0.00016797,2]
[382547747,1756663868653,480.0,0.00016797,2]
[382547748,1756663868856,480.0,0.00016797,2]
[382547749,1756663869120,292.37934074,0.00016796,2]
[382547750,1756663869177,300.0,0.00016796,2]
[382547751,1756663869215,455.43045761,0.00016798,2]
[382547752,1756663869435,480.0,0.00016796,2]
[382547753,1756663869473,480.0,0.00016797,2]
[382547754,1756663869852,480.0,0.00016796,2]
[382547755,1756663870001,480.0,0.00016797,2]
[382547756,1756663871438,5000.0,0.00016798,2]
[382547757,1756663872873,480.0,0.00016797,2]
[382547758,1756663874167,2862.02,0.00016797,2]
[382547759,1756663874207,605.98,0.00016796,2]
[382547760,1756663876415,92.01,0.00016797,2]
[382547761,1756663876438,387.99,0.00016797,2]
[382547762,1756663877403,721.46,0.00016797,2]
[382547763,1756663878631,666.0,0.00016527,2]
[382547764,1756663879667,5000.0,0.00016798,2]
[382547765,1756663880259,480.0,0.00016797,2]
[382547766,1756663884569,480.0,0.00016797,2]
[382547767,1756663885149,501.75,0.00016797,2]
[382547768,1756663885241,810.63,0.00016796,2]
[382547769,1756663885983,319.42052218,0.00016797,2]
[382547770,1756663886007,377.40947782,0.00016797,2]
[382547771,1756663886040,518.02195018,0.00016797,2]
[382547772,1756663886265,480.0,0.00016796,2]
[382547773,1756663886332,480.0,0.00016796,2]
[382547774,1756663888332,480.0,0.00016797,2]
[382547775,1756663889958,480.0,0.00016797,2]
[382547776,1756663893745,773.24,0.00016797,2]
[382547777,1756663894947,1411.328572,0.00016798,2]
[382547778,1756663894970,3588.671428,0.00016798,2]
[382547779,1756663895020,480.0,0.00016797,2]
[382547780,1756663895393,480.0,0.00016796,2]
[382547781,1756663895720,451.328572,0.00016796,2]
[382547782,1756663895743,28.671428,0.00016796,2]
[382547783,1756663897946,345.79131,0.00016192,2]
[382547784,1756663898911,480.0,0.00016797,2]
[382547785,1756663899013,592.31,0.00016797,2]
[382547786,1756663899043,480.0,0.00016797,2]
[382547787,1756663899414,1369.94,0.00016797,2]
[382547788,1756663900593,480.0,0.00016796,2]
[382547789,1756663902208,480.0,0.00016797,2]
[382547790,1756663903243,743.287262,0.00016798,2]
[382547791,1756663903271,4256.712738,0.00016798,2]
[382547792,1756663904747,480.0,0.00016797,2]
[382547793,1756663905343,263.287262,0.00016797,2]
[382547794,1756663905365,216.712738,0.00016797,2]
[382547795,1756663907520,480.0,0.00016797,2]
[382547796,1756663908351,480.0,0.00016797,2]
[382547797,1756663909337,-220.39162757,0.00016872,2]
[382547798,1756663911552,-259.60837243,0.00016872,2]
[382547799,1756663911575,-54.96804535,0.00016872,2]
[382547800,1756663911605,480.0,0.00016796,2]
[382547801,1756663911727,1025.82,0.00016797,2]
[382547802,1756663913217,480.0,0.00016797,2]
[382547803,1756663914030,480.0,0.00016797,2]
[382547804,1756663914823,-162.03195465,0.00016872,2]
[382547805,1756663915982,480.0,0.00016797,2]
[382547806,1756663916716,480.0,0.00016796,2]
[382547807,1756663916829,397.467262,0.00016796,2]
[382547808,1756663916851,82.532738,0.00016796,2]
[382547809,1756663917896,1023.11,0.00016797,2]
[382547810,1756663918173,480.0,0.00016797,2]
[382547811,1756663918243,-263.0,0.00016872,2]
[382547812,1756663918268,-13.26400764,0.00016872,2]
[382547813,1756663919671,3414.357262,0.00016798,2]
[382547814,1756663919693,1585.642738,0.00016798,2]
[382547815,1756663920948,653.87,0.00016797,2]
[382547816,1756663922123,1297.76,0.00016797,2]
[382547817,1756663922150,-268.65802392,0.00016872,2]
[382547818,1756663924184,-152.07796844,0.00016871,2]
[382547819,1756663927504,1462.727262,0.00016798,2]
[382547820,1756663927527,3537.272738,0.00016798,2]
[382547821,1756663929369,480.0,0.00016797,2]
[382547822,1756663932227,982.727262,0.00016797,2]
[382547823,1756663932250,138.262738,0.00016797,2]
[382547824,1756663932282,4816.29,0.00016797,2]
[382547825,1756663932628,45.447262,0.00016798,2]
[382547826,1756663932651,954.552738,0.00016798,2]
[382547827,1756663932847,1845.08,0.00016797,2]
[382547828,1756663936191,480.0,0.00016797,2]
[382547829,1756663938095,480.0,0.00016797,2]
[382547830,1756663940315,480.0,0.00016797,2]
[382547831,1756663943200,760.367262,0.00016798,2]
[382547832,1756663943223,4239.632738,0.00016798,2]
[382547833,1756663945247,485.31157402,0.00016797,2]
[382547834,1756663946139,275.05568798,0.00016797,2]
[382547835,1756663946162,211.07431202,0.00016797,2]
[382547836,1756663946388,296.00705477,0.00016797,2]
[382547837,1756663948697,480.0,0.00016797,2]
[382547838,1756663951225,4012.91863321,0.00016798,2]
[382547839,1756663951249,987.08136679,0.00016798,2]
[382547840,1756663952341,674.33,0.00016796,2]
[382547841,1756663952754,480.0,0.00016797,2]
[382547842,1756663954656,958.22,0.00016797,2]
[382547843,1756663956288,554.18,0.00016797,2]
[382547844,1756663959872,1033.7,0.00016797,2]
[382547845,1756663964472,480.0,0.00016797,2]
[382547846,1756663965809,480.0,0.00016797,2]
[382547847,1756663966406,480.0,0.00016797,2]
[382547848,1756663966967,5000.0,0.00016798,2]
[382547849,1756663969129,2526.31,0.00016797,2]
[382547850,1756663969152,1470.97,0.00016797,2]
[382547851,1756663969594,686.25,0.00016796,2]
[382547852,1756663970773,345.17565042,0.00016796,2]
[382547853,1756663971634,7497.61434958,0.00016698,2]
[382547854,1756663971658,10000.01,0.00016698,2]
[382547855,1756663971680,10000.01,0.00016698,2]
[382547856,1756663971703,10000.01,0.00016698,2]
[382547857,1756663971724,10000.01,0.00016698,2]
[382547858,1756663971747,10000.01,0.00016698,2]